fUST/lending_fUST_20240629
["ID","MTS","AMOUNT","RATE_DAILY","PERIOD"]
[330604660,1719609112154,-374.0,0.00031572,2]
[330604661,1719609112166,-374.0,0.00031572,2]
[330604662,1719609112176,-374.0,0.00031572,2]
[330604663,1719609112188,-374.0,0.00031572,2]
[330604664,1719609112199,-374.0,0.00031572,2]
[330604665,1719609112209,-374.0,0.00031572,2]
[330604666,1719609112220,-456.6,0.00031633,7]
[330604667,1719609112231,-151.0,0.00031633,7]
[330604668,1719609112242,-653.228589,0.00031817,2]
[330604669,1719609112253,-540.419808,0.00031817,2]
[330604670,1719609112264,-653.228589,0.00032205,2]
[330604671,1719609112275,-540.419808,0.00032205,2]
[330604672,1719609112286,-1433.31324579,0.000325,60]
[330604673,1719609112297,-183.947412,0.00032593,2]
[330604674,1719609112307,-653.228589,0.00032593,2]
[330604675,1719609112319,-540.419808,0.00032593,2]
[330604676,1719609112329,-123866.852735,0.00032685,7]
[330604677,1719609112340,-138868.10587074,0.00032685,7]
[330604678,1719609112351,-1904.00948946,0.00032685,7]
[330604679,1719609112362,-5000.0,0.00032685,91]
[330604680,1719609112373,-2412.41333454,0.00032685,120]
[330604681,1719609112384,-604.50859934,0.00032685,120]
[330604682,1719609112394,-88507.67230954,0.00032685,2]
[330604683,1719609112405,-62907.73337482,0.00032685,2]
[330604684,1719609112416,-300.0,0.00032685,2]
[330604685,1719609112427,-786.42785109,0.00032685,2]
[330604686,1719609112438,-509.59769495,0.00032685,2]
[330604687,1719609112448,-288.43489328,0.00032685,2]
[330604688,1719609112459,-4114.50581861,0.00032685,2]
[330604689,1719609112470,-317.55671006,0.00032685,2]
[330604690,1719609112481,-283.3448141,0.00032685,2]
[330604691,1719609112492,-4086.04721019,0.00032685,2]
[330604692,1719609112503,-10007.85858481,0.00032685,2]
[330604693,1719609112515,-2726.6963651,0.00032685,2]
[330604694,1719609112526,-152.99049666,0.00032685,2]
[330604695,1719609112536,-511.09971424,0.00032685,2]
[330604696,1719609112558,-18840.42845408,0.00032685,2]
[330604697,1719609112569,-433.53111921,0.00032685,2]
[330604698,1719609112579,-221.4481643,0.00032685,2]
[330604699,1719609112590,-3031.33545658,0.00032685,2]
[330604700,1719609112605,-3615.64357276,0.00032685,2]
[330604701,1719609112616,-14464.4468264,0.00032685,2]
[330604702,1719609112628,-1009.89195388,0.00032685,2]
[330604703,1719609112639,-152354.8739415,0.00032685,2]
[330604704,1719609112650,-150.0,0.00032685,2]
[330604705,1719609112662,-150.0,0.00032685,2]
[330604706,1719609112672,-200.0,0.00032685,2]
[330604707,1719609112683,-20000.0,0.00032685,2]
[330604708,1719609112694,-982.82879337,0.00032685,2]
[330604709,1719609112704,-152.33517349,0.00032685,7]
[330604710,1719609112715,-558.00916252,0.00032876,2]
[330604711,1719609112726,-699.99999999,0.000329,2]
[330604712,1719609112737,-396.29919118,0.00033,30]
[330604713,1719609112747,-5049.17451609,0.00033,2]
[330604714,1719609112759,-195.0,0.00033,2]
[330604715,1719609112769,-331.0,0.00033183,2]
[330604716,1719609112780,-331.0,0.00033183,2]
[330604717,1719609112791,-456.6,0.00033211,15]
[330604718,1719609112801,-151.0,0.00033211,15]
[330604719,1719609112811,-453.372102,0.00033295,2]
[330604720,1719609112822,-20000.0,0.00033558,2]
[330604721,1719609112832,-152.19411218,0.00033695,2]
[330604722,1719609112842,-772.0,0.00033986,2]
[330604723,1719609112853,-572.90069606,0.00034,2]
[330604724,1719609112864,-456.6,0.00034789,15]
[330604725,1719609112874,-151.0,0.00034789,15]
[330604726,1719609112885,-27347.86195147,0.000349,2]
[330604727,1719609112895,-5880.04297122,0.00035,15]
[330604728,1719609112907,-1168.47318534,0.00035,4]
[330604729,1719609112917,-500.0,0.00035,30]
[330604730,1719609112927,-67272.95958914,0.00035,2]
[330604731,1719609112938,-398.96866,0.00035,2]
[330604732,1719609112948,-1433.39,0.00035616,120]
[330604733,1719609112959,-1433.39,0.00035616,120]
[330604734,1719609112970,-1433.39,0.00035616,120]
[330604735,1719609112980,-1433.39,0.00035616,120]
[330604736,1719609112991,-1433.39,0.00035616,120]
[330604737,1719609113002,-1433.39,0.00035616,120]
[330604738,1719609113015,-1433.39,0.00035616,120]
[330604739,1719609113027,-1433.39,0.00035616,120]
[330604740,1719609113038,-1433.39,0.00035616,120]
[330604741,1719609113059,-1433.39,0.00035616,120]
[330604742,1719609113071,-1433.39,0.00035616,120]
[330604743,1719609113082,-1433.39,0.00035616,120]
[330604744,1719609113095,-1433.39,0.00035616,120]
[330604745,1719609113106,-1433.39,0.00035616,120]
[330604746,1719609113400,-1433.39,0.00035616,120]
[330604747,1719609113412,-1433.39,0.00035616,120]
[330604748,1719609113421,-1433.39,0.00035616,120]
[330604749,1719609113430,-1433.39,0.00035616,120]
[330604750,1719609113439,-1433.39,0.00035616,120]
[330604751,1719609113448,-1433.39,0.00035616,120]
[330604752,1719609113457,-1433.39,0.00035616,120]
[330604753,1719609113467,-1433.39,0.00035616,120]
[330604754,1719609113476,-1433.39,0.00035616,120]
[330604755,1719609113486,-1433.42913954,0.00035616,120]
[330604756,1719609113496,-3853.26,0.00035616,3]
[330604757,1719609113505,-2412.86327774,0.00035949,120]
[330604758,1719609113514,-195.0,0.00036,2]
[330604759,1719609113523,-456.6,0.00036367,15]
[330604760,1719609113533,-151.0,0.00036367,15]
[330604761,1719609113543,-569.82144192,0.00036822,35]
[330604762,1719609113562,-772.0,0.00036986,2]
[330604763,1719609113571,-7113.31,0.00037,5]
[330604764,1719609113580,-154.80649189,0.00037,4]
[330604765,1719609113589,-1000.0,0.00037,120]
[330604766,1719609113598,-166.666666,0.00037101,2]
[330604767,1719609113607,-2048.0,0.000373,11]
[330604768,1719609113616,-2048.0,0.000373,11]
[330604769,1719609113625,-160.0,0.00037417,3]
[330604770,1719609113634,-20000.0,0.00037945,2]
[330604771,1719609113643,-456.6,0.00037945,15]
[330604772,1719609113653,-151.0,0.00037945,15]
[330604773,1719609113662,-1296.62698015,0.00037989,48]
[330604774,1719609113670,-154.82195475,0.00038,7]
[330604775,1719609113679,-29249.93426617,0.00038,30]
[330604776,1719609113688,-259.75317585,0.00038002,7]
[330604777,1719609113698,-300.70492624,0.0003803,7]
[330604778,1719609113708,-554.81249118,0.00038048,7]
[330604779,1719609113717,-554.81249118,0.00038058,7]
[330604780,1719609113727,-554.81249118,0.0003806,7]
[330604781,1719609113736,-178.7982901,0.00038063,7]
[330604782,1719609113745,-156.75894696,0.0003807,7]
[330604783,1719609113755,-259.75317585,0.0003809,7]
[330604784,1719609113764,-259.75317585,0.00038091,7]
[330604785,1719609113773,-300.70492624,0.00038101,7]
[330604786,1719609113783,-259.75317585,0.00038123,7]
[330604787,1719609113792,-178.7982901,0.00038125,7]
[330604788,1719609113807,-259.75317585,0.00038125,7]
[330604789,1719609113817,-178.7982901,0.00038155,7]
[330604790,1719609113826,-259.75317585,0.00038191,7]
[330604791,1719609113836,-259.75317585,0.00038198,7]
[330604792,1719609113845,-300.70492624,0.000382,7]
[330604793,1719609113855,-153.13839784,0.00038201,7]
[330604794,1719609113864,-300.70492624,0.00038207,7]
[330604795,1719609113873,-156.75894696,0.00038216,7]
[330604796,1719609113881,-67787.411705,0.0003824,3]
[330604797,1719609113891,-74604.62451754,0.0003826,2]
[330604798,1719609113901,-554.81249118,0.00038281,7]
[330604799,1719609113911,-178.7982901,0.00038282,7]
[330604800,1719609113920,-2000.0,0.000383,13]
[330604801,1719609113929,-2000.0,0.000383,13]
[330604802,1719609113938,-404.0,0.000383,13]
[330604803,1719609113947,-178.7982901,0.00038309,7]
[330604804,1719609113956,-160.67612689,0.00038336,7]
[330604805,1719609113966,-500.0,0.00038356,4]
[330604806,1719609113975,-500.0,0.00038356,4]
[330604807,1719609113984,-500.0,0.00038356,4]
[330604808,1719609113993,-513.83170394,0.00038356,4]
[330604809,1719609114003,-500.0,0.00038356,30]
[330604810,1719609114012,-500.0,0.00038356,30]
[330604811,1719609114021,-500.0,0.00038356,30]
[330604812,1719609114033,-500.0,0.00038356,30]
[330604813,1719609114042,-500.0,0.00038356,30]
[330604814,1719609114058,-500.0,0.00038356,30]
[330604815,1719609114069,-500.0,0.00038356,30]
[330604816,1719609114080,-500.0,0.00038356,30]
[330604817,1719609114090,-500.0,0.00038356,30]
[330604818,1719609114102,-500.0,0.00038356,30]
[330604819,1719609114112,-500.0,0.00038356,30]
[330604820,1719609114122,-500.0,0.00038356,30]
[330604821,1719609114131,-500.0,0.00038356,30]
[330604822,1719609114141,-500.0,0.00038356,30]
[330604823,1719609114150,-500.0,0.00038356,30]
[330604824,1719609114160,-500.0,0.00038356,30]
[330604825,1719609114169,-539.49538158,0.00038356,30]
[330604826,1719609114179,-153.13839784,0.00038357,7]
[330604827,1719609114188,-554.81249118,0.00038362,7]
[330604828,1719609114198,-259.75317585,0.00038383,7]
[330604829,1719609114207,-1926.33699647,0.00038385,7]
[330604830,1719609114216,-554.81249118,0.00038392,7]
[330604831,1719609114226,-1926.33699647,0.00038426,7]
[330604832,1719609114236,-259.75317585,0.0003843,7]
[330604833,1719609114245,-300.70492624,0.00038438,7]
[330604834,1719609114254,-259.75317585,0.0003845,7]
[330604835,1719609114263,-160.67612689,0.00038467,7]
[330604836,1719609114273,-554.81249118,0.00038482,7]
[330604837,1719609114283,-160.67612689,0.00038485,7]
[330604838,1719609114293,-554.81249118,0.00038496,7]
[330604839,1719609114309,-1926.33699647,0.00038542,7]
[330604840,1719609114318,-151151.5141209,0.0003855,4]
[330604841,1719609114327,-259.75317585,0.00038594,7]
[330604842,1719609114336,-175.5941448,0.00038605,7]
[330604843,1719609114346,-300.70492624,0.00038622,7]
[330604844,1719609114355,-554.81249118,0.00038622,7]
[330604845,1719609114364,-178.7982901,0.00038628,7]
[330604846,1719609114374,-178.7982901,0.0003863,7]
[330604847,1719609114383,-153.8349406,0.0003863,2]
[330604848,1719609114393,-153.0,0.0003863,2]
[330604849,1719609114404,-156.75894696,0.00038667,7]
[330604850,1719609114414,-259.75317585,0.0003868,7]
[330604851,1719609114425,-178.7982901,0.00038681,7]
[330604852,1719609114435,-1926.33699647,0.00038707,7]
[330604853,1719609114446,-259.75317585,0.00038712,7]
[330604854,1719609114456,-554.81249118,0.00038729,7]
[330604855,1719609114466,-300.70492624,0.00038751,7]
[330604856,1719609114476,-178.7982901,0.00038775,7]
[330604857,1719609114487,-554.81249118,0.00038787,7]
[330604858,1719609114497,-259.75317585,0.00038806,7]
[330604859,1719609114508,-259.75317585,0.00038814,7]
[330604860,1719609114519,-159.07051066,0.00038833,7]
[330604861,1719609114529,-300.70492624,0.00038845,7]
[330604862,1719609114539,-153.13839784,0.00038861,7]
[330604863,1719609114555,-153.13839784,0.00038878,7]
[330604864,1719609114565,-160.67612689,0.00038883,7]
[330604865,1719609114575,-178.7982901,0.00038884,7]
[330604866,1719609114584,-1926.33699647,0.0003892,7]
[330604867,1719609114594,-554.81249118,0.00038923,7]
[330604868,1719609114603,-1926.33699647,0.00038925,7]
[330604869,1719609114612,-300.70492624,0.00038949,7]
[330604870,1719609114622,-276.9,0.00038971,15]
[330604871,1719609114632,-152.0,0.00038971,15]
[330604872,1719609114641,-300.70492624,0.00038971,7]
[330604873,1719609114650,-554.81249118,0.00038975,7]
[330604874,1719609114659,-156.75894696,0.00038995,7]
[330604875,1719609114669,-195.0,0.00039,2]
[330604876,1719609114678,-153.13839784,0.00039027,7]
[330604877,1719609114688,-1926.33699647,0.0003905,7]
[330604878,1719609114697,-259.75317585,0.00039052,7]
[330604879,1719609114707,-178.7982901,0.00039071,7]
[330604880,1719609114716,-153.13839784,0.000391,7]
[330604881,1719609114725,-300.70492624,0.00039102,7]
[330604882,1719609114735,-554.81249118,0.00039115,7]
[330604883,1719609114745,-1926.33699647,0.0003912,7]
[330604884,1719609114754,-554.81249118,0.0003919,7]
[330604885,1719609114763,-554.81249118,0.00039214,7]
[330604886,1719609114773,-300.70492624,0.00039219,7]
[330604887,1719609114782,-178.7982901,0.00039243,7]
[330604888,1719609114791,-300.70492624,0.00039248,7]
[330604889,1719609114801,-166.70666705,0.00039265,7]
[330604890,1719609114811,-160.67612689,0.00039265,7]
[330604891,1719609114820,-160.67612689,0.00039279,7]
[330604892,1719609114829,-153.13839784,0.00039281,7]
[330604893,1719609114837,-160.0,0.00039284,4]
[330604894,1719609114847,-156.75894696,0.00039289,7]
[330604895,1719609114856,-398.0,0.000393,18]
[330604896,1719609114865,-300.70492624,0.00039302,7]
[330604897,1719609114875,-153.13839784,0.00039314,7]
[330604898,1719609114884,-554.81249118,0.00039316,7]
[330604899,1719609114893,-1926.33699647,0.00039318,7]
[330604900,1719609114902,-159.07051066,0.00039336,7]
[330604901,1719609114912,-300.70492624,0.00039346,7]
[330604902,1719609114921,-554.81249118,0.00039359,7]
[330604903,1719609114930,-300.70492624,0.00039379,7]
[330604904,1719609114939,-453.372102,0.00039394,2]
[330604905,1719609114949,-153.13839784,0.00039402,7]
[330604906,1719609114957,-300.70492624,0.00039434,7]
[330604907,1719609114967,-259.75317585,0.00039451,7]
[330604908,1719609114976,-554.81249118,0.00039454,7]
[330604909,1719609114985,-160.67612689,0.00039498,7]
[330604910,1719609114995,-1926.33699647,0.0003951,7]
[330604911,1719609115004,-156.75894696,0.00039515,7]
[330604912,1719609115015,-156.75894696,0.00039542,7]
[330604913,1719609115028,-178.7982901,0.00039561,7]
[330604914,1719609115037,-259.75317585,0.00039566,7]
[330604915,1719609115051,-178.7982901,0.0003957,7]
[330604916,1719609115063,-178.7982901,0.00039572,7]
[330604917,1719609115076,-156.75894696,0.00039606,7]
[330604918,1719609115086,-259.75317585,0.00039612,7]
[330604919,1719609115097,-554.81249118,0.00039615,7]
[330604920,1719609115107,-160.67612689,0.00039616,7]
[330604921,1719609115117,-300.70492624,0.00039639,7]
[330604922,1719609115128,-1926.33699647,0.00039642,7]
[330604923,1719609115137,-160.67612689,0.00039647,7]
[330604924,1719609115147,-178.7982901,0.00039669,7]
[330604925,1719609115156,-1926.33699647,0.00039679,7]
[330604926,1719609115165,-163.2023622,0.00039714,7]
[330604927,1719609115178,-178.7982901,0.00039719,7]
[330604928,1719609115187,-300.70492624,0.00039735,7]
[330604929,1719609115197,-259.75317585,0.00039774,7]
[330604930,1719609115206,-1926.33699647,0.00039789,7]
[330604931,1719609115216,-178.7982901,0.00039801,7]
[330604932,1719609115226,-554.81249118,0.00039801,7]
[330604933,1719609115235,-276.9,0.00039821,15]
[330604934,1719609115244,-152.0,0.00039821,15]
[330604935,1719609115253,-1926.33699647,0.00039832,7]
[330604936,1719609115262,-259.75317585,0.00039847,7]
[330604937,1719609115272,-153.13839784,0.00039853,7]
[330604938,1719609115282,-259.75317585,0.00039862,7]
[330604939,1719609115292,-1926.33699647,0.00039874,7]
[330604940,1719609115303,-160.67612689,0.00039884,7]
[330604941,1719609115312,-153.13839784,0.00039904,7]
[330604942,1719609115321,-259.75317585,0.00039915,7]
[330604943,1719609115331,-1926.33699647,0.00039935,7]
[330604944,1719609115340,-160.67612689,0.00039985,7]
[330604945,1719609115349,-772.0,0.00039986,2]
[330604946,1719609115358,-6955.73318402,0.0003999,4]
[330604947,1719609115367,-153.13839784,0.00039995,7]
[330604948,1719609115376,-151.0,0.0004,120]
[330604949,1719609115385,-500.0,0.0004,120]
[330604950,1719609115394,-520.62808472,0.0004,120]
[330604951,1719609115403,-1094.0,0.0004,120]
[330604952,1719609115412,-2000.0,0.0004,120]
[330604953,1719609115422,-16006.86229733,0.0004,4]
[330604954,1719609115431,-554.81249118,0.00040006,30]
[330604955,1719609115441,-554.81249118,0.00040028,30]
[330604956,1719609115450,-554.81249118,0.00040044,30]
[330604957,1719609115460,-554.81249118,0.00040063,30]
[330604958,1719609115470,-259.75317585,0.00040097,30]
[330604959,1719609115479,-554.81249118,0.00040107,30]
[330604960,1719609115488,-259.75317585,0.00040126,30]
[330604961,1719609115498,-554.81249118,0.00040148,30]
[330604962,1719609115507,-300.70492624,0.00040161,30]
[330604963,1719609115516,-153.13839784,0.00040167,30]
[330604964,1719609115525,-300.70492624,0.00040177,30]
[330604965,1719609115534,-554.81249118,0.0004018,30]
[330604966,1719609115544,-178.7982901,0.00040182,30]
[330604967,1719609115553,-178.7982901,0.00040204,30]
[330604968,1719609115563,-1926.33699647,0.00040219,30]
[330604969,1719609115572,-178.7982901,0.00040222,30]
[330604970,1719609115581,-259.75317585,0.0004023,30]
[330604971,1719609115590,-554.81249118,0.00040258,30]
[330604972,1719609115600,-300.70492624,0.00040271,30]
[330604973,1719609115610,-300.0,0.000403,19]
[330604974,1719609115620,-300.70492624,0.00040351,30]
[330604975,1719609115630,-153.13839784,0.00040365,30]
[330604976,1719609115640,-1926.33699647,0.00040421,30]
[330604977,1719609115650,-166.70666705,0.00040423,30]
[330604978,1719609115659,-178.7982901,0.00040428,30]
[330604979,1719609115669,-178.7982901,0.00040449,30]
[330604980,1719609115679,-259.75317585,0.00040458,30]
[330604981,1719609115688,-1926.33699647,0.00040479,30]
[330604982,1719609115698,-259.75317585,0.00040495,30]
[330604983,1719609115708,-1926.33699647,0.00040506,30]
[330604984,1719609115717,-153.13839784,0.00040541,30]
[330604985,1719609115726,-300.70492624,0.00040542,30]
[330604986,1719609115735,-300.70492624,0.00040555,30]
[330604987,1719609115745,-300.70492624,0.00040564,30]
[330604988,1719609115755,-160.67612689,0.00040569,30]
[330604989,1719609115764,-259.75317585,0.00040574,30]
[330604990,1719609115774,-1926.33699647,0.00040575,30]
[330604991,1719609115782,-166.70666705,0.00040577,30]
[330604992,1719609115792,-178.7982901,0.00040581,30]
[330604993,1719609115801,-1926.33699647,0.00040583,30]
[330604994,1719609115811,-166.70666705,0.00040608,30]
[330604995,1719609115820,-175.5941448,0.0004061,30]
[330604996,1719609115829,-153.13839784,0.00040653,30]
[330604997,1719609115838,-1926.33699647,0.00040661,30]
[330604998,1719609115848,-276.9,0.0004067,15]
[330604999,1719609115857,-152.0,0.0004067,15]
[330605000,1719609115866,-1926.33699647,0.00040712,30]
[330605001,1719609115876,-259.75317607,0.00040713,30]
[330605002,1719609115885,-1926.33699647,0.00040739,30]
[330605003,1719609115895,-156.75894696,0.00040755,30]
[330605004,1719609115904,-166.70666705,0.00040779,30]
[330605005,1719609115913,-159.07051068,0.00040781,30]
[330605006,1719609115922,-153.13839784,0.00040799,30]
[330605007,1719609115932,-6000.0,0.000408,10]
[330605008,1719609115940,-300.70492624,0.00040802,30]
[330605009,1719609115950,-178.7982901,0.00040809,30]
[330605010,1719609115959,-300.70492624,0.00040812,30]
[330605011,1719609115969,-178.7982901,0.00040819,30]
[330605012,1719609115979,-1926.33699647,0.00040824,30]
[330605013,1719609115988,-160.67612692,0.00040828,30]
[330605014,1719609115997,-153.13839784,0.00040849,30]
[330605015,1719609116007,-1926.33699647,0.0004085,30]
[330605016,1719609116018,-153.13839784,0.00040854,30]
[330605017,1719609116030,-178.7982901,0.00040862,30]
[330605018,1719609116038,-178.7982901,0.0004087,30]
[330605019,1719609116048,-81220.27121686,0.000409,2]
[330605020,1719609116059,-1926.33699647,0.00040909,30]
[330605021,1719609116068,-153.13839784,0.00040925,30]
[330605022,1719609116080,-175.59414482,0.00040933,30]
[330605023,1719609116089,-156.75894705,0.00040935,30]
[330605024,1719609116099,-153.13839784,0.00040943,30]
[330605025,1719609116112,-300.70492624,0.00040962,30]
[330605026,1719609116122,-178.7982901,0.00040966,30]
[330605027,1719609116131,-554.81249119,0.00040992,30]
[330605028,1719609116140,-243.9163916,0.00041,90]
[330605029,1719609116150,-2000.0,0.00041,120]
[330605030,1719609116158,-31238.5766271,0.00041,30]
[330605031,1719609116167,-153.13839804,0.00041008,30]
[330605032,1719609116177,-1926.33699647,0.00041009,30]
[330605033,1719609116186,-300.70492626,0.00041022,30]
[330605034,1719609116194,-166.70666708,0.00041032,30]
[330605035,1719609116205,-1926.33699656,0.00041072,30]
[330605036,1719609116213,-178.79829023,0.00041092,30]
[330605037,1719609116223,-1000.0,0.00041095,120]
[330605038,1719609116232,-1000.0,0.00041095,120]
[330605039,1719609116240,-1000.0,0.00041095,120]
[330605040,1719609116248,-1000.0,0.00041095,120]
[330605041,1719609116257,-1000.0,0.00041095,120]
[330605042,1719609116266,-1000.0,0.00041095,120]
[330605043,1719609116275,-1000.0,0.00041095,120]
[330605044,1719609116284,-1000.0,0.00041095,120]
[330605045,1719609116295,-1000.0,0.00041095,120]
[330605046,1719609116305,-653.41125082,0.00041095,120]
[330605047,1719609116314,-3002.56,0.00041095,120]
[330605048,1719609116323,-150.0,0.00041096,2]
[330605049,1719609116333,-160.0,0.00041151,5]
[330605050,1719609116342,-300.0,0.000413,21]
[330605051,1719609116351,-3002.56,0.00041369,120]
[330605052,1719609116360,-151.0,0.00041425,120]
[330605053,1719609116369,-276.9,0.0004152,31]
[330605054,1719609116379,-152.0,0.0004152,31]
[330605055,1719609116388,-3002.56,0.00041643,120]
[330605056,1719609116397,-250.0,0.00041644,2]
[330605057,1719609116406,-3002.56,0.00041917,120]
[330605058,1719609116416,-150.80395486,0.00041995,2]
[330605059,1719609116425,-2000.0,0.00042,120]
[330605060,1719609116434,-2000.0,0.00042,120]
[330605061,1719609116443,-2000.0,0.00042,120]
[330605062,1719609116451,-1500.0,0.00042,120]
[330605063,1719609116460,-1706.18548262,0.00042,30]
[330605064,1719609116469,-3002.56,0.00042191,120]
[330605065,1719609116478,-470.57741759,0.00042192,2]
[330605066,1719609116487,-300.0,0.000423,23]
[330605067,1719609116635,-276.9,0.0004237,31]
[330605068,1719609116667,-152.0,0.0004237,31]
[330605069,1719609116676,-3002.56,0.00042465,120]
[330605070,1719609116686,-127286.13101155,0.00042499,7]
[330605071,1719609116695,-1975.04638601,0.000425,30]
[330605072,1719609116704,-1000.0,0.000425,120]
[330605073,1719609116714,-3002.56,0.00042739,120]
[330605074,1719609116723,-2048.0,0.000428,18]
[330605075,1719609116732,-2048.0,0.000428,18]
[330605076,1719609116741,-151.0,0.00042849,120]
[330605077,1719609116751,-642.805,0.00042986,2]
[330605078,1719609116761,-1319.1,0.00042989,60]
[330605079,1719609116771,-242.8590566,0.00043,30]
[330605080,1719609116780,-1000.0,0.00043,120]
[330605081,1719609116789,-2000.0,0.00043,120]
[330605082,1719609116800,-1706.0,0.00043,30]
[330605083,1719609116809,-908.62918221,0.00043,30]
[330605084,1719609116818,-3002.56,0.00043013,120]
[330605085,1719609116828,-160.0,0.00043019,6]
[330605086,1719609116837,-276.9,0.00043219,31]
[330605087,1719609116846,-152.0,0.00043219,31]
[330605088,1719609116855,-3002.56,0.00043287,120]
[330605089,1719609116865,-234.40457415,0.000433,120]
[330605090,1719609116874,-1000.0,0.000433,120]
[330605091,1719609116883,-300.0,0.000433,24]
[330605092,1719609116892,-1000.0,0.000435,120]
[330605093,1719609116901,-3002.56,0.00043561,120]
[330605094,1719609116911,-2000.0,0.000438,19]
[330605095,1719609116920,-2000.0,0.000438,19]
[330605096,1719609116930,-152.33517351,0.00043816,52]
[330605097,1719609116939,-424.30500404,0.00043835,120]
[330605098,1719609116948,-269.45280387,0.00043835,30]
[330605099,1719609116957,-500.0,0.00043835,30]
[330605100,1719609116967,-500.0,0.00043835,30]
[330605101,1719609116976,-500.0,0.00043835,30]
[330605102,1719609116985,-500.0,0.00043835,30]
[330605103,1719609116995,-500.0,0.00043835,30]
[330605104,1719609117004,-500.0,0.00043835,30]
[330605105,1719609117017,-500.0,0.00043835,30]
[330605106,1719609117027,-500.0,0.00043835,30]
[330605107,1719609117037,-500.0,0.00043835,30]
[330605108,1719609117049,-500.0,0.00043835,30]
[330605109,1719609117058,-500.0,0.00043835,30]
[330605110,1719609117071,-500.0,0.00043835,30]
[330605111,1719609117081,-500.0,0.00043835,30]
[330605112,1719609117092,-500.0,0.00043835,30]
[330605113,1719609117103,-500.0,0.00043835,30]
[330605114,1719609117113,-500.0,0.00043835,30]
[330605115,1719609117122,-486.1132328,0.00043835,30]
[330605116,1719609117131,-3002.56,0.00043835,120]
[330605117,1719609117140,-154.82195475,0.00044,4]
[330605118,1719609117149,-3434.13465,0.00044,5]
[330605119,1719609117159,-3026.07283265,0.00044,120]
[330605120,1719609117168,-408.0,0.00044,120]
[330605121,1719609117178,-276.9,0.00044069,31]
[330605122,1719609117187,-152.0,0.00044069,31]
[330605123,1719609117196,-404.0,0.000441,20]
[330605124,1719609117205,-3002.56,0.00044109,120]
[330605125,1719609117214,-151.0,0.00044274,120]
[330605126,1719609117223,-300.0,0.000443,26]
[330605127,1719609117232,-3002.56,0.00044383,120]
[330605128,1719609117242,-3002.56,0.00044657,120]
[330605129,1719609117251,-160.0,0.00044886,7]
[330605130,1719609117260,-276.9,0.00044919,31]
[330605131,1719609117269,-152.0,0.00044919,31]
[330605132,1719609117278,-3002.56,0.00044931,120]
[330605133,1719609117287,-207.03800861,0.00045,120]
[330605134,1719609117298,-2089.0,0.00045,120]
[330605135,1719609117307,-3002.56,0.00045205,120]
[330605136,1719609117316,-3002.56,0.00045479,120]
[330605137,1719609117325,-453.372102,0.00045494,2]
[330605138,1719609117335,-151.0,0.00045699,120]
[330605139,1719609117345,-3002.56,0.00045753,120]
[330605140,1719609117357,-276.9,0.00045768,31]
[330605141,1719609117367,-152.0,0.00045768,31]
[330605142,1719609117377,-1000000.0,0.000458,30]
[330605143,1719609117386,-152.33517351,0.00045816,61]
[330605144,1719609117395,-200.0,0.00046,2]
[330605145,1719609117405,-400.0,0.00046,120]
[330605146,1719609117414,-401.178004,0.00046,30]
[330605147,1719609117423,-3002.56,0.00046027,120]
[330605148,1719609117432,-3002.56,0.00046301,120]
[330605149,1719609117441,-500.0,0.00046489,2]
[330605150,1719609117450,-3002.56,0.00046575,120]
[330605151,1719609117459,-276.9,0.00046618,60]
[330605152,1719609117469,-152.0,0.00046618,60]
[330605153,1719609117478,-160.0,0.00046753,8]
[330605154,1719609117487,-3002.56,0.00046849,120]
[330605155,1719609117496,-7993.93828442,0.00047,7]
[330605156,1719609117506,-3002.56,0.00047123,120]
[330605157,1719609117515,-151.0,0.00047123,120]
[330605158,1719609117524,-3002.70721249,0.00047397,120]
[330605159,1719609117534,-276.9,0.00047468,60]